bitfinex/quotes_ETHUSD_20220213
["timestamp","ask_amount","ask_price","bid_price","bid_amount"]
[1644739443449,0.99054222,2919.8,2919.7,16.76072119]
[1644739443648,0.99054222,2919.8,2919.7,16.76152119]
[1644739444050,0.99054222,2919.8,2919.7,36.77392119]
[1644739444302,0.99054222,2919.8,2919.7,16.76632119]
[1644739444493,0.99054222,2919.8,2919.7,16.76552119]
[1644739444694,0.99054222,2919.8,2919.7,16.76392119]
[1644739444893,0.99054222,2919.8,2919.7,16.76552119]
[1644739445494,0.99054222,2919.8,2919.7,36.77472119]
[1644739445693,0.99054222,2919.8,2919.7,36.77552119]
[1644739445894,0.99054222,2919.8,2919.7,36.76630602]
[1644739446093,0.99054222,2919.8,2919.7,36.76470602]
[1644739446494,0.99054222,2919.8,2919.7,36.76630602]
[1644739446696,0.99054222,2919.8,2919.7,36.76550602]
[1644739446901,0.99054222,2919.8,2919.7,36.76710602]
[1644739447095,0.99054222,2919.8,2919.7,36.76630602]
[1644739447297,1.3479,2920.9,2919.7,36.76470602]
[1644739447498,1.46066425,2920.8,2919.8,1.0]
[1644739447697,1.45672858,2920.7,2919.9,4.15747527]
[1644739447900,1.45672858,2920.8,2920.1,0.85586]
[1644739448142,2.18511568,2921.7,2920.2,4.28020577]
[1644739448143,1.45672858,2920.7,2920.2,4.28020577]
[1644739448341,1.97582165,2921.4,2920.3,1.93543496]
[1644739448342,1.1628,2921.4,2920.3,1.93543496]
[1644739448540,1.45643459,2921.3,2921.0,1.17600225]
[1644739448741,1.45643459,2921.3,2921.1,0.496]
[1644739448942,1.45643459,2921.2,2921.1,0.6272]
[1644739449139,1.45643459,2921.7,2921.1,0.496]
[1644739449344,1.45643459,2921.6,2921.1,0.496]
[1644739449549,1.45643459,2921.5,2921.1,0.496]
[1644739449744,0.1711,2921.9,2921.1,0.496]
[1644739449944,1.45643459,2921.8,2921.1,0.496]
[1644739450147,2.26945624,2921.9,2921.1,0.496]
[1644739450345,2.94134366,2921.8,2921.1,0.496]
[1644739450546,1.45643459,2921.7,2921.1,0.496]
[1644739451346,0.01095673,2921.5,2921.1,0.496]
[1644739451545,1.45643459,2921.4,2921.1,0.496]
[1644739452591,1.45643459,2921.3,2921.1,0.496]
[1644739453392,1.45643459,2921.3,2921.2,3.27885379]
[1644739453592,0.64192165,2922.0,2921.2,0.496]
[1644739453593,1.45643459,2921.7,2921.2,0.496]
[1644739453791,0.01095702,2921.3,2921.2,0.624]
[1644739453990,0.01095702,2921.3,2921.2,0.496]
[1644739454192,1.46739161,2921.3,2921.2,0.496]
[1644739454597,0.1711,2921.9,2921.2,0.496]
[1644739454800,1.45637012,2921.8,2921.2,0.6248]
[1644739455002,0.01095695,2921.4,2921.2,3.896]
[1644739455196,0.01095695,2921.4,2921.3,1.25035625]
[1644739455398,0.01095695,2921.4,2921.3,1.74635625]
[1644739455840,1.45636716,2922.0,2921.3,1.74635625]
[1644739456041,0.0109568,2921.5,2921.3,1.74635625]
[1644739456242,1.45636716,2921.4,2921.3,1.74635625]
[1644739457547,1.45636716,2921.4,2921.3,1.87595625]
[1644739457943,0.0109568,2921.5,2921.3,1.87595625]
[1644739457944,0.0109568,2921.5,2921.3,6.09991381]
[1644739458144,0.0109568,2921.5,2921.4,3.22201965]
[1644739458344,1.87422165,2922.3,2921.4,4.02691094]
[1644739458544,0.01095673,2921.5,2921.4,4.02691094]
[1644739458743,0.01095673,2921.5,2921.4,3.71801965]
[1644739458943,0.01095673,2921.5,2921.4,4.03411094]
[1644739459144,0.01095673,2921.5,2921.4,4.02771094]
[1644739459399,0.01095673,2921.5,2921.4,4.03011094]
[1644739459600,0.00393689,2922.3,2921.4,4.03011094]
[1644739459802,0.01095666,2921.6,2921.5,1.0]
[1644739460000,0.01095666,2921.6,2921.5,4.95019429]
[1644739460208,0.01095666,2921.6,2921.5,5.12548558]
[1644739460402,0.01095666,2921.6,2921.5,5.29658558]
[1644739460600,0.01095666,2921.6,2921.5,5.29338558]
[1644739460802,0.00393689,2922.6,2921.5,5.29338558]
[1644739460803,0.00393689,2922.6,2922.1,0.95252094]
[1644739461010,1.45605792,2922.5,2922.2,0.496]
[1644739461203,0.8199087,2922.1,2921.6,10.9673467]
[1644739461405,0.8199087,2922.1,2922.0,0.17209129]
[1644739461603,0.8199087,2922.1,2922.0,0.66809129]
[1644739462204,0.8199087,2922.1,2922.0,1.53726118]
[1644739462403,0.8199087,2922.1,2922.0,0.66809129]
[1644739465046,0.8199087,2922.1,2922.0,0.70306278]
[1644739466647,0.8199087,2922.1,2922.0,0.83666278]
[1644739466894,0.8199087,2922.1,2922.0,4.23746278]
[1644739467095,0.8199087,2922.1,2922.0,4.23826278]
[1644739467296,0.8199087,2922.1,2922.0,4.23506278]
[1644739467997,0.8199087,2922.1,2922.0,4.23586278]
[1644739468193,0.8199087,2922.1,2922.0,4.23506278]
[1644739468493,0.8199087,2922.1,2922.0,4.23586278]
[1644739468695,0.8199087,2922.1,2922.0,4.23506278]
[1644739468894,0.8199087,2922.1,2922.0,4.23426278]
[1644739469095,0.8199087,2922.1,2922.0,7.40665614]
[1644739469295,0.8199087,2922.1,2922.0,4.24066278]
[1644739469498,0.8199087,2922.1,2922.0,7.43786108]
[1644739469699,0.8199087,2922.1,2922.0,7.43466108]
[1644739469898,0.8199087,2922.1,2922.0,7.43546108]
[1644739470097,0.8199087,2922.1,2922.0,7.45650509]
[1644739470301,0.8199087,2922.1,2922.0,7.45250509]
[1644739470551,0.8199087,2922.1,2922.0,7.62280509]
[1644739470749,0.8199087,2922.1,2922.0,7.62360509]
[1644739470949,0.8199087,2922.1,2922.0,7.62840509]
[1644739471147,0.8199087,2922.1,2922.0,7.92840509]
[1644739471347,0.8199087,2922.1,2922.0,8.88332408]
[1644739471547,0.8199087,2922.1,2922.0,8.88252408]
[1644739471751,0.8199087,2922.1,2922.0,8.86085176]
[1644739471948,0.8199087,2922.1,2922.0,8.86999985]
[1644739472148,0.8199087,2922.1,2922.0,8.86599985]
[1644739472550,0.8199087,2922.1,2922.0,8.86679985]
[1644739472750,0.8199087,2922.1,2922.0,5.73520679]
[1644739473055,0.8199087,2922.1,2922.0,8.69079494]
[1644739473351,0.8199087,2922.1,2922.0,5.56490679]
[1644739473550,0.8199087,2922.1,2922.0,5.26330679]
[1644739473749,0.8199087,2922.1,2922.0,4.25930679]
[1644739473950,0.8199087,2922.1,2922.0,4.26250679]
[1644739474149,0.8199087,2922.1,2922.0,4.26170679]
[1644739474401,0.8199087,2922.1,2922.0,4.26330679]
[1644739474802,0.8199087,2922.1,2922.0,4.25530679]
[1644739475001,0.8199087,2922.1,2922.0,4.26330679]
[1644739475199,0.8199087,2922.1,2922.0,4.12090679]
[1644739475399,0.8199087,2922.1,2922.0,4.25530679]
[1644739475604,0.8199087,2922.1,2922.0,4.25610679]
[1644739475800,0.8199087,2922.1,2922.0,4.26170679]
[1644739475999,0.8199087,2922.1,2922.0,4.25770679]
[1644739476199,0.8199087,2922.1,2922.0,4.25610679]
[1644739476401,0.8199087,2922.1,2922.0,4.25690679]
[1644739476599,0.8199087,2922.1,2922.0,4.25770679]
[1644739476800,0.8199087,2922.1,2922.0,4.25850679]
[1644739477000,0.8199087,2922.1,2922.0,4.26250679]
[1644739477200,0.8199087,2922.1,2922.0,4.25530679]
[1644739477401,0.8199087,2922.1,2922.0,4.25610679]
[1644739478845,0.8199087,2922.1,2922.0,3.62490679]
[1644739479452,0.8199087,2922.1,2922.0,3.4528155]
[1644739480453,2.27608985,2922.1,2922.0,3.4528155]
[1644739480855,0.8199087,2922.1,2922.0,3.62490679]
[1644739481251,0.8199087,2922.1,2922.0,2.07168739]
[1644739483198,0.8199087,2922.1,2922.0,1.8995961]
[1644739485303,0.85794019,2922.1,2922.0,1.8995961]
[1644739488657,2.31402808,2922.1,2922.0,1.8995961]
[1644739490103,6.66641826,2922.1,2922.0,1.8995961]
[1644739490302,3.27262808,2922.1,2922.0,1.8995961]
[1644739492300,2.31402808,2922.1,2922.0,1.8995961]
[1644739493549,5.66442026,2922.1,2922.0,0.32528085]
[1644739493750,4.15,2922.0,2921.2,0.17209129]
[1644739493954,3.67203411,2921.9,2921.2,0.17209129]
[1644739494149,0.00393625,2921.8,2921.2,0.17209129]
[1644739494351,1.45608789,2921.7,2921.2,0.17209129]
[1644739494552,2.32077372,2921.6,2921.2,0.17209129]
[1644739494752,1.45608789,2921.5,2921.2,0.17209129]
[1644739495752,1.46648964,2921.5,2921.2,0.17209129]
[1644739496459,1.45608789,2921.4,2921.2,0.17209129]
[1644739498096,1.45608789,2921.3,2921.2,0.17209129]
[1644739499599,0.0104021,2921.4,2921.2,0.17209129]
[1644739499804,1.45608789,2921.3,2921.2,0.17209129]
[1644739500003,0.0104021,2921.4,2921.3,0.1304]
[1644739500004,0.02988966,2921.4,2921.3,0.1304]
[1644739500203,1.48620848,2921.4,2921.2,0.17209129]
[1644739500402,0.01948756,2921.4,2921.2,0.17209129]
[1644739500649,0.01948756,2921.4,2921.2,3.57209129]
[1644739500850,1.45636325,2921.3,2921.2,3.57209129]
[1644739501250,1.45636375,2921.3,2921.2,3.57209129]
[1644739502453,1.45636375,2921.3,2921.2,3.70009129]
[1644739502653,0.02988966,2921.4,2921.2,3.57209129]
[1644739502654,0.01948756,2921.4,2921.2,3.57209129]
[1644739503053,0.02988966,2921.4,2921.2,3.57209129]
[1644739503854,0.01948756,2921.4,2921.2,3.57209129]
[1644739504303,0.0298896,2921.4,2921.2,3.57209129]
[1644739504707,0.0298896,2921.4,2921.3,0.17209129]
[1644739505105,0.01948756,2921.4,2921.3,0.17209129]
[1644739505707,0.01948756,2921.4,2921.2,3.4]
[1644739505910,0.01948756,2921.4,2921.2,2.88372613]
[1644739505911,1.45632883,2921.3,2921.2,2.88372613]
[1644739510052,1.47452997,2921.3,2921.2,2.88372613]
[1644739518458,4.85234267,2921.3,2921.2,2.88372613]
[1644739518860,5.02344267,2921.3,2921.2,2.88372613]
[1644739519316,5.02344267,2921.3,2921.2,1.825e-05]
[1644739519514,5.02344267,2921.3,2920.5,0.25]
[1644739519515,4.15,2921.2,2920.5,0.25]
[1644739519712,6.34688061,2921.1,2920.0,0.34991715]
[1644739519916,1.45632883,2921.0,2920.0,0.17881715]
[1644739520110,3.57943562,2920.9,2920.0,0.17881715]
[1644739520313,1.45632883,2920.8,2920.0,0.34991715]
[1644739520512,3.19932014,2920.7,2920.1,0.17209129]
[1644739520711,1.45632883,2920.6,2920.0,0.17881715]
[1644739520911,3.25225225,2920.5,2920.0,0.17881715]
[1644739521112,3.16090523,2920.5,2920.0,0.17881715]
[1644739521313,0.01040316,2920.5,2920.0,0.17881715]
[1644739521514,0.84488313,2920.4,2920.0,0.17881715]
[1644739521719,3.25696009,2920.3,2920.0,0.17881715]
[1644739521915,3.25696009,2920.3,2919.6,0.59319129]
[1644739522116,0.01040341,2920.3,2919.7,0.1296]
[1644739522316,0.01040341,2920.3,2919.6,0.34319129]
[1644739522518,0.01040341,2920.3,2920.0,3.4]
[1644739523147,0.84488313,2920.4,2920.0,3.4]
[1644739523352,0.01040348,2920.3,2920.0,3.4]
[1644739523552,3.14465402,2920.3,2920.0,3.4]
[1644739523854,0.01040348,2920.3,2920.0,3.4]
[1644739524352,3.11390625,2920.3,2920.0,3.4]
[1644739524554,0.01026696,2920.3,2920.0,3.4]
[1644739525158,3.12485353,2920.3,2920.0,3.4]
[1644739525352,0.01455864,2920.2,2920.0,3.57209129]
[1644739527097,0.02482575,2920.2,2920.0,3.57209129]
[1644739527898,0.01455864,2920.2,2920.0,3.57209129]
[1644739528298,0.02496227,2920.2,2920.0,3.57209129]
[1644739529198,0.01455864,2920.2,2920.0,3.57209129]
[1644739529404,0.02496687,2920.2,2920.0,3.57209129]
[1644739529804,0.01553285,2920.1,2920.0,3.57209129]
[1644739535306,0.03007345,2920.1,2920.0,3.57209129]
[1644739543005,0.03007345,2920.1,2920.0,3.4]
[1644739543401,1.487158,2920.1,2920.0,1.84574927]
[1644739543602,1.658258,2920.1,2920.0,1.84574927]
[1644739543802,1.658258,2920.1,2920.0,4.927e-05]
[1644739544909,1.487158,2920.1,2920.0,4.927e-05]
[1644739545107,5.14547342,2920.1,2920.0,4.927e-05]
[1644739545307,5.74547342,2920.1,2920.0,4.927e-05]
[1644739545554,5.14547342,2920.1,2920.0,4.927e-05]
[1644739546151,5.48663342,2920.1,2920.0,4.927e-05]
[1644739546351,6.54108342,2920.1,2920.0,4.927e-05]
[1644739547155,7.03708342,2920.1,2920.0,4.927e-05]
[1644739547954,27.04708342,2920.1,2920.0,4.927e-05]
[1644739548356,28.04708342,2920.1,2920.0,4.927e-05]
[1644739548557,30.23308954,2920.1,2920.0,4.927e-05]
[1644739548755,30.23316255,2920.1,2920.0,4.927e-05]
[1644739548955,28.04708342,2920.1,2920.0,4.927e-05]
[1644739549608,30.23319416,2920.1,2920.0,4.927e-05]
[1644739549805,30.87511581,2920.1,2920.0,4.927e-05]
[1644739550207,30.23319416,2920.1,2920.0,4.927e-05]
[1644739552809,28.04708342,2920.1,2920.0,4.927e-05]
[1644739554856,30.23317627,2920.1,2920.0,4.927e-05]
[1644739556459,30.87509792,2920.1,2920.0,4.927e-05]
[1644739556901,30.23317627,2920.1,2920.0,4.927e-05]
[1644739557903,30.06207627,2920.1,2920.0,4.927e-05]
[1644739558503,30.70399792,2920.1,2920.0,4.927e-05]
[1644739558806,30.70959327,2920.1,2920.0,4.927e-05]
[1644739559408,30.88069327,2920.1,2920.0,4.927e-05]
[1644739559806,30.23317627,2920.1,2920.0,4.927e-05]
[1644739561858,20.01075073,2919.9,2919.2,0.01040721]
[1644739562058,5.0,2919.4,2919.2,0.01040721]
[1644739562260,5.0,2919.4,2918.2,0.00336528]
[1644739562261,24.16,2919.2,2918.3,0.17209129]
[1644739562462,24.16,2919.2,2918.4,0.00336528]
[1644739562463,11.54830267,2919.1,2918.4,0.00336528]
[1644739562659,0.93249052,2918.8,2918.2,0.00336528]
[1644739562866,5.4020899,2918.7,2918.2,0.00336528]
[1644739563059,3.944329,2918.7,2918.2,0.00336528]
[1644739565504,3.944329,2918.7,2918.3,0.01096207]
[1644739566305,3.944329,2918.7,2918.2,0.00336528]
[1644739566704,3.944329,2918.7,2918.4,0.01096199]
[1644739566906,0.02192398,2918.3,2918.2,0.00336528]
[1644739567105,0.97707975,2918.3,2918.2,0.00336528]
[1644739567505,0.97707975,2918.3,2917.9,0.04385456]
[1644739567506,0.97707975,2918.3,2917.8,0.00336528]
[1644739567706,0.97707975,2918.3,2917.5,0.00336528]
[1644739568152,0.97707975,2918.3,2918.2,3.4]
[1644739569357,4.1807349,2918.3,2918.2,3.4]
[1644739569757,0.97707975,2918.3,2918.2,3.4]
[1644739574908,1.00820346,2918.3,2918.2,3.4]
[1644739576352,0.05304769,2918.3,2918.2,3.4]
[1644739579159,4.769e-05,2918.3,2918.2,4.896]
[1644739579410,0.01036863,2918.8,2918.3,1.85]
[1644739579612,0.1713,2919.4,2918.3,0.49936528]
[1644739579809,0.01040852,2918.8,2918.3,1.69746528]
[1644739580812,4.00988695,2919.6,2918.3,1.69746528]
[1644739581012,0.01040922,2918.8,2918.3,1.70787661]
[1644739582012,1.1022449,2919.0,2918.3,1.69746528]
[1644739582224,0.01040922,2918.8,2918.3,1.70787661]
[1644739583154,1.1022449,2919.0,2918.3,1.69746528]
[1644739583354,0.0104065,2918.8,2918.3,1.70787389]
[1644739584357,1.1022449,2919.0,2918.3,1.69746528]
[1644739584558,0.0104065,2918.8,2918.3,1.70787389]
[1644739585159,0.01508702,2918.7,2918.3,1.70787389]
[1644739585558,0.01508702,2918.7,2918.3,1.69746528]
[1644739585760,0.01508702,2918.7,2918.3,1.70787377]
[1644739586364,0.01508702,2918.7,2918.3,1.87917377]
[1644739586816,0.01508702,2918.7,2918.3,1.86876528]
[1644739587103,0.01508702,2918.7,2918.3,1.87917396]
[1644739587905,0.01508702,2918.7,2918.3,1.86876528]
[1644739588305,0.01508702,2918.7,2918.3,1.87917396]
[1644739589104,0.01508702,2918.7,2918.3,1.86876528]
[1644739589507,1.09394822,2919.0,2918.4,3.25]
[1644739589708,0.1713,2919.5,2918.5,0.00336528]
[1644739589912,1.45749043,2919.4,2918.5,0.00336528]
[1644739590110,0.01506674,2918.6,2918.5,0.00336528]
[1644739590308,0.01506674,2918.6,2918.3,1.86876528]
[1644739590756,0.01506674,2918.6,2918.5,0.98760974]
[1644739590961,0.01506674,2918.6,2918.5,1.48360974]
[1644739591158,0.17205073,2919.9,2918.6,4.15]
[1644739591363,1.45732183,2919.8,2918.7,0.496]
[1644739591557,1.45732183,2919.7,2918.8,0.00336528]
[1644739591757,1.45732183,2919.6,2918.9,0.496]
[1644739591959,1.45732183,2919.5,2918.9,0.496]
[1644739592160,0.00075073,2919.9,2918.9,0.496]
[1644739592161,1.45732183,2919.4,2918.9,0.496]
[1644739592484,0.00075073,2919.9,2918.9,0.496]
[1644739592562,1.45807885,2919.9,2918.9,0.496]
[1644739592760,1.16693037,2919.3,2918.9,0.496]
[1644739594160,0.01096004,2919.2,2918.9,0.496]
[1644739595214,0.00075073,2919.9,2919.0,0.1711]
[1644739595408,0.01036889,2919.2,2919.0,0.1711]
[1644739595606,0.01036889,2919.2,2918.9,0.5245317]
[1644739596405,1.06929333,2919.4,2918.9,0.5245317]
[1644739596607,0.01036889,2919.2,2918.9,0.5245317]
[1644739597506,1.06929333,2919.4,2918.9,0.5245317]
[1644739597713,4.95734715,2919.3,2918.8,0.00336528]
[1644739597913,4.95734715,2919.3,2918.5,0.01037151]
[1644739597914,1.46771604,2919.2,2918.5,0.01037151]
[1644739598162,5.12864715,2919.1,2918.5,0.01037151]
[1644739598459,1.45734715,2919.0,2918.5,0.01037151]
[1644739598657,0.1713,2918.9,2918.5,0.01037151]
[1644739598859,2.54092052,2918.8,2917.8,5.276]
[1644739599059,2.54092052,2918.8,2918.5,0.01037081]
[1644739599060,1.45734715,2918.7,2918.5,0.01037081]
[1644739599266,1.62864715,2918.7,2918.5,0.01037081]
[1644739599465,1.45734715,2918.6,2918.5,0.01037081]
[1644739599964,1.45734715,2918.6,2917.8,1.3898]
[1644739600166,3.29944444,2918.5,2918.4,0.01041046]
[1644739600369,1.45734715,2918.5,2918.4,0.01041046]
[1644739600565,1.45734715,2918.6,2918.4,0.01041046]
[1644739601166,3.32328863,2918.5,2917.8,1.2185]
[1644739601366,1.45734715,2918.4,2917.9,0.04164833]
[1644739601821,3.80866688,2918.7,2917.9,0.04164833]
[1644739601822,4.57114395,2918.3,2917.9,0.04164833]
[1644739602012,3.80251976,2918.7,2917.9,0.04164833]
[1644739602311,1.45779971,2918.6,2917.8,3.4]
[1644739602512,3.47992831,2918.5,2917.8,3.4]
[1644739602712,1.45779971,2918.4,2918.2,0.01041077]
[1644739603112,3.76757437,2918.7,2918.2,0.01041077]
[1644739603313,1.457794,2918.6,2918.2,0.01041077]
[1644739603512,1.457794,2918.6,2917.8,3.4]
[1644739603513,3.2138678,2918.5,2917.8,3.4]
[1644739603712,1.457794,2918.4,2917.8,3.4]
[1644739603914,1.457794,2918.4,2917.8,3.44166956]
[1644739604113,1.457794,2918.3,2917.8,3.44166956]
[1644739604316,3.80453045,2918.7,2917.8,3.44166956]
[1644739604519,1.45779261,2918.6,2917.8,3.44166956]
[1644739604717,3.24128273,2918.5,2917.8,3.44166956]
[1644739605017,1.45778751,2918.4,2918.1,0.01041608]
[1644739605220,0.01798586,2918.3,2918.1,0.01041608]
[1644739606053,0.01798586,2918.3,2917.8,3.4]
[1644739606254,0.01798586,2918.3,2918.1,0.01041608]
[1644739607257,0.01798586,2918.3,2917.8,3.4]
[1644739607456,0.01798586,2918.3,2918.1,0.01040794]
[1644739608457,0.01798586,2918.3,2917.8,3.4]
[1644739608657,0.01798586,2918.3,2918.1,0.01040794]
[1644739609513,0.01798586,2918.3,2917.8,3.4]
[1644739609912,0.01798586,2918.3,2918.1,0.01040794]
[1644739610717,0.01798586,2918.3,2917.8,3.4]
[1644739611117,0.01798586,2918.3,2918.1,0.01040849]
[1644739612017,0.01798586,2918.3,2917.8,3.4]
[1644739612220,0.01798586,2918.3,2918.1,0.01040849]
[1644739613154,0.01798586,2918.3,2917.8,3.4]
[1644739613361,0.01798586,2918.3,2918.1,0.01040849]
[1644739614457,0.01798586,2918.3,2917.9,0.00333594]
[1644739614659,0.01798586,2918.3,2918.1,0.01040846]
[1644739615665,0.01798586,2918.3,2917.9,0.00333594]
[1644739615867,0.01798586,2918.3,2918.1,0.01040846]
[1644739616816,0.01798586,2918.3,2917.9,0.00333594]
[1644739617003,0.01798586,2918.3,2918.1,0.01040846]
[1644739618010,0.01798586,2918.3,2917.9,0.00333594]
[1644739618210,0.01798586,2918.3,2918.1,0.01040846]
[1644739619211,0.01798586,2918.3,2917.9,0.00333594]
[1644739619511,0.01798586,2918.3,2918.1,0.01040846]
[1644739621664,0.01798586,2918.3,2917.9,0.00333594]
[1644739621865,0.01798586,2918.3,2918.1,0.01040846]
[1644739622967,0.01798586,2918.3,2917.9,0.00333594]
[1644739623173,0.01798586,2918.3,2918.1,0.01040846]
[1644739624067,0.01798586,2918.3,2917.9,0.00333594]
[1644739624324,0.01798586,2918.3,2918.1,0.01040846]
[1644739625117,0.01798586,2918.3,2917.9,0.00333594]
[1644739625518,0.01798586,2918.3,2918.1,0.01040846]
[1644739626524,0.96977472,2918.3,2917.9,0.00333594]
[1644739626820,0.96977472,2918.3,2918.1,0.01040846]
[1644739627623,0.96977472,2918.3,2917.9,0.00333594]
[1644739627923,0.96977472,2918.3,2918.1,0.01040846]
[1644739628771,0.96977472,2918.3,2917.9,0.49933594]
[1644739629167,0.96977472,2918.3,2918.1,0.01040846]
[1644739629568,0.96833472,2918.3,2918.1,0.01040846]
[1644739630070,0.96833472,2918.3,2917.9,0.00333594]
[1644739630270,0.96833472,2918.3,2918.1,0.01040846]
[1644739631173,0.96833472,2918.3,2917.9,0.00333594]
[1644739631377,0.96833472,2918.3,2918.1,0.01040846]
[1644739632218,0.01654586,2918.3,2918.1,0.01040846]
[1644739632419,0.01654586,2918.3,2917.9,0.00333594]
[1644739632620,0.01654586,2918.3,2918.1,0.01040846]
[1644739633622,0.01654586,2918.3,2917.9,0.00333594]
[1644739633822,0.01654586,2918.3,2918.1,0.01040846]
[1644739634827,0.01654586,2918.3,2917.9,0.00333594]
[1644739635029,0.01654586,2918.3,2918.1,0.01040846]
[1644739635960,0.01654586,2918.3,2917.9,0.00333594]
[1644739636364,0.01654586,2918.3,2918.1,0.01040846]
[1644739637165,0.01654586,2918.3,2917.9,0.00333594]
[1644739637367,0.01654586,2918.3,2918.1,0.01040846]
[1644739638365,0.01654586,2918.3,2917.9,0.00333594]
[1644739638566,0.01654586,2918.3,2918.1,0.01040846]
[1644739639718,0.01654586,2918.3,2917.9,0.00333594]
[1644739639912,0.01654586,2918.3,2918.1,0.01040846]
[1644739640916,0.01654586,2918.3,2917.9,0.00333594]
[1644739641118,0.01654586,2918.3,2918.1,0.01040846]
[1644739641516,1.45771547,2918.2,2918.1,0.01040846]
[1644739642022,1.45771547,2918.2,2917.9,0.00333594]
[1644739642221,1.45771547,2918.2,2918.0,0.01040852]
[1644739643357,1.45771547,2918.2,2917.9,0.00333594]
[1644739643560,1.45771547,2918.2,2918.0,0.01040858]
[1644739644366,1.45771547,2918.2,2917.9,0.00333594]
[1644739644765,1.45771547,2918.2,2918.0,0.01040858]
[1644739645566,1.49491226,2918.2,2917.9,0.00333594]
[1644739645767,0.03719679,2918.2,2917.9,0.00333594]
[1644739645969,0.03719679,2918.2,2918.0,0.18170858]
[1644739646171,0.1713,2918.8,2918.0,0.18170858]
[1644739646172,0.1713,2918.8,2918.5,1.16550193]
[1644739646368,1.45754782,2918.7,2918.6,3.20975609]
[1644739646572,1.45754782,2918.7,2918.5,0.496]
[1644739647010,1.45754782,2918.7,2918.5,0.50640807]
[1644739647911,1.45754782,2918.6,2918.5,0.50640807]
[1644739648116,1.45754782,2918.6,2918.5,0.496]
[1644739648315,1.45754782,2918.6,2918.5,0.50640797]
[1644739649316,1.45754782,2918.6,2918.5,0.496]
[1644739649718,1.45754782,2918.8,2918.5,0.496]
[1644739649915,1.45754782,2918.7,2918.6,0.05155655]
[1644739650559,1.45754782,2918.8,2918.6,0.05155655]
[1644739650759,1.45754782,2918.7,2918.6,0.05155655]
[1644739650960,1.45754782,2918.8,2918.6,0.05155655]
[1644739651863,1.45754782,2918.7,2918.6,0.05155655]
[1644739652464,1.45754782,2918.8,2918.6,0.05155655]
[1644739653065,0.88986657,2919.0,2918.6,0.05155655]
[1644739653066,1.45754782,2918.7,2918.6,0.05155655]
[1644739653466,0.01040641,2918.9,2918.6,0.05155655]
[1644739653467,1.45754782,2918.8,2918.6,0.05155655]
[1644739654317,1.45754782,2918.7,2918.6,0.05155655]
[1644739654522,1.45754782,2918.8,2918.6,0.05155655]
[1644739655324,1.45754782,2918.8,2918.6,0.03399467]
[1644739655522,1.45754782,2918.7,2918.6,0.03399467]
[1644739655722,1.45754782,2918.8,2918.6,0.03399467]
[1644739656624,1.45754782,2918.7,2918.6,0.03399467]
[1644739656825,1.45754782,2918.8,2918.6,0.03399467]
[1644739657823,1.45754782,2918.7,2918.6,3.43399467]
[1644739658263,1.45754782,2918.8,2918.6,3.43399467]
[1644739658464,1.45754782,2918.7,2918.6,3.43399467]
[1644739659969,1.45754782,2918.8,2918.6,3.43399467]
[1644739660164,0.88986657,2919.0,2918.6,3.43399467]
[1644739660165,1.45754782,2918.7,2918.6,3.43399467]
[1644739660564,1.45754782,2918.8,2918.6,3.43399467]
[1644739660765,1.45754782,2918.7,2918.6,3.43399467]
[1644739661165,1.45754782,2918.8,2918.6,3.43399467]
[1644739661566,1.45754782,2918.7,2918.6,3.43399467]
[1644739661822,1.45754782,2918.8,2918.6,3.43399467]
[1644739662010,1.45754782,2918.7,2918.6,3.43399467]
[1644739662211,1.45754782,2918.8,2918.6,3.43399467]
[1644739662616,1.45754782,2918.7,2918.6,3.43399467]
[1644739662812,1.45754782,2918.8,2918.6,3.43399467]
[1644739663913,1.45754782,2918.7,2918.6,3.43399467]
[1644739664517,1.45754782,2918.8,2918.6,3.43399467]
[1644739665135,1.45754782,2918.7,2918.6,3.43399467]
[1644739665561,1.45754782,2918.8,2918.6,3.43399467]
[1644739665761,1.45754782,2918.7,2918.6,3.43399467]
[1644739666462,1.45754782,2918.8,2918.6,3.43399467]
[1644739666662,1.45754782,2918.7,2918.6,3.43399467]
[1644739666862,1.45754782,2918.8,2918.6,3.43399467]
[1644739667365,1.45754782,2918.7,2918.6,3.43399467]
[1644739667961,1.45754782,2918.8,2918.6,3.43399467]
[1644739668566,1.45754782,2918.7,2918.6,3.43399467]
[1644739668767,1.46795423,2918.9,2918.6,3.43399467]
[1644739668967,1.45754782,2918.8,2918.6,3.43399467]
[1644739669918,0.88986657,2919.0,2918.6,3.43399467]
[1644739669919,1.45754782,2918.7,2918.6,3.43399467]
[1644739670115,0.01040641,2918.9,2918.6,3.43399467]
[1644739670116,1.45754782,2918.8,2918.6,3.43399467]
[1644739670321,1.45754782,2918.8,2918.7,0.00159584]
[1644739671118,1.46795435,2918.9,2918.7,0.00159584]
[1644739671316,1.45754782,2918.8,2918.7,0.00159584]
[1644739673358,1.45754782,2918.9,2918.7,0.00159584]
[1644739673560,1.45754782,2918.8,2918.7,0.00159584]
[1644739674564,1.45754782,2918.9,2918.7,0.00159584]
[1644739674763,1.46795434,2918.9,2918.7,0.00159584]
[1644739674966,1.45754782,2918.8,2918.7,0.00159584]
[1644739675170,1.4559604,2918.8,2918.7,0.00159584]
[1644739675764,0.81915707,2919.3,2918.7,0.00159584]
[1644739675765,0.1713,2919.3,2918.7,0.00159584]
[1644739675965,0.01040652,2918.9,2918.7,0.00159584]
[1644739676817,0.99501041,2919.1,2918.7,0.00159584]
[1644739677009,0.01040663,2918.9,2918.7,0.00159584]
[1644739678012,0.99501041,2919.1,2918.7,0.00159584]
[1644739678414,0.01040663,2918.9,2918.7,0.00159584]
[1644739679212,0.99501041,2919.1,2918.7,0.00159584]
[1644739679417,0.01040663,2918.9,2918.7,0.00159584]
[1644739680016,0.01040663,2918.9,2918.8,0.03304739]
[1644739680418,0.99501041,2919.1,2918.8,0.03304739]
[1644739680662,0.01040657,2919.0,2918.8,0.03304739]
[1644739681763,0.99501041,2919.1,2918.8,0.03304739]
[1644739681962,0.01040651,2919.0,2918.8,0.03304739]
[1644739683064,0.0104065,2919.0,2918.8,0.03304739]
[1644739684062,0.99501041,2919.1,2918.8,0.03304739]
[1644739684310,0.0104065,2919.0,2918.8,0.03304739]
[1644739686416,0.99501041,2919.1,2918.8,0.03304739]
[1644739686616,0.0104065,2919.0,2918.8,0.03304739]
[1644739687617,0.99501041,2919.1,2918.8,0.03304739]
[1644739687818,0.0104065,2919.0,2918.8,0.03304739]
[1644739688859,0.64785707,2919.4,2918.8,0.03304739]
[1644739689061,0.0104065,2919.0,2918.8,0.03304739]
[1644739690067,0.99708578,2919.3,2918.8,0.03304739]
[1644739690266,0.0104065,2919.0,2918.8,0.03304739]
[1644739691271,0.99708578,2919.3,2918.8,0.03304739]
[1644739691467,0.0104065,2919.0,2918.8,0.03304739]
[1644739692513,4.3674,2919.6,2918.8,0.87223868]
[1644739692514,3.77045707,2919.6,2918.8,0.87223868]
[1644739692711,3.77045707,2919.6,2918.9,3.4806876]
[1644739692712,0.0104065,2919.0,2918.9,3.4806876]